bitfinex/quotes_BTCUSD_20240719
["timestamp","ask_amount","ask_price","bid_price","bid_amount"]
[1721352437383,0.539371,63698.0,63697.0,0.004]
[1721352437556,0.539371,63698.0,63674.0,0.04695567]
[1721352437557,0.143,63692.0,63685.0,0.314041]
[1721352437787,0.300007,63692.0,63685.0,0.314041]
[1721352437989,0.143,63692.0,63683.0,0.314052]
[1721352438195,0.300006,63692.0,63687.0,0.157016]
[1721352438414,0.0816,63692.0,63679.0,0.314073]
[1721352438637,0.157023,63685.0,63680.0,0.157033]
[1721352438838,0.314026,63689.0,63672.0,0.07717479]
[1721352438839,0.157031,63682.0,63672.0,0.07717479]
[1721352439047,0.157027,63683.0,63679.0,0.157036]
[1721352439696,0.157027,63683.0,63672.0,0.07717479]
[1721352439697,0.0815,63684.0,63672.0,0.314108]
[1721352439907,0.157032,63682.0,63671.0,0.00786]
[1721352440113,0.0611,63683.0,63680.0,0.157035]
[1721352440321,0.0611,63683.0,63681.0,0.157032]
[1721352440537,0.0611,63683.0,63682.0,0.47109]
[1721352440952,0.0611,63683.0,63682.0,0.78515]
[1721352441172,0.006,63684.0,63683.0,0.471082]
[1721352441379,0.006,63684.0,63683.0,1.099192]
[1721352441584,0.0623,63687.0,63686.0,0.15702]
[1721352441794,0.0623,63687.0,63686.0,0.7851]
[1721352442207,0.0767,63689.0,63688.0,0.785075]
[1721352442811,0.0767,63689.0,63688.0,0.471045]
[1721352443500,0.157022,63686.0,63682.0,0.001]
[1721352443722,0.0624,63687.0,63676.0,0.314085]
[1721352443925,0.0624,63687.0,63670.0,0.5615]
[1721352443926,0.0634,63687.0,63680.0,0.314067]
[1721352444135,0.001,63684.0,63678.0,0.314078]
[1721352444347,0.157038,63679.0,63671.0,0.32197]
[1721352444554,0.137,63683.0,63678.0,0.157039]
[1721352445056,0.137,63683.0,63682.0,0.001]
[1721352446370,0.137,63683.0,63682.0,0.31406]
[1721352446576,0.137,63683.0,63682.0,0.47109]
[1721352447427,0.143,63683.0,63682.0,0.78615]
[1721352447629,0.147,63683.0,63682.0,0.47209]
[1721352448036,0.141,63683.0,63682.0,0.78515]
[1721352448247,0.141,63683.0,63682.0,0.47309]
[1721352448453,0.141,63683.0,63682.0,0.002]
[1721352449094,0.141,63683.0,63682.0,0.15903]
[1721352449512,0.143,63683.0,63682.0,0.15903]
[1721352449712,0.143,63683.0,63682.0,0.002]
[1721352449920,0.141,63683.0,63682.0,0.002]
[1721352450140,0.137,63683.0,63679.0,0.314074]
[1721352450347,0.143,63683.0,63682.0,0.001]
[1721352450758,0.143,63683.0,63680.0,0.157034]
[1721352450759,0.137,63683.0,63680.0,0.157034]
[1721352450959,0.141,63683.0,63680.0,0.157034]
[1721352451164,0.147,63683.0,63682.0,0.001]
[1721352451372,0.143,63683.0,63682.0,0.15803]
[1721352451609,0.147,63683.0,63682.0,0.15803]
[1721352451847,0.147,63683.0,63682.0,0.001]
[1721352452594,0.147,63683.0,63681.0,0.157031]
[1721352452595,0.141,63683.0,63681.0,0.157031]
[1721352452813,0.147,63683.0,63682.0,0.001]
[1721352453223,0.144,63683.0,63681.0,0.157031]
[1721352453645,0.144,63683.0,63682.0,0.15703]
[1721352453848,0.145,63683.0,63682.0,0.15703]
[1721352454301,0.14092117,63683.0,63682.0,0.15703]
[1721352454514,0.13692117,63683.0,63682.0,0.47109]
[1721352454986,0.13792117,63683.0,63682.0,0.47109]
[1721352455873,0.13792117,63683.0,63682.0,1.09921]
[1721352455874,0.001,63683.0,63682.0,1.09921]
[1721352456097,0.001,63683.0,63682.0,1.39979174]
[1721352456305,0.005,63683.0,63682.0,1.71385174]
[1721352456737,0.0776,63701.0,63700.0,0.470956]
[1721352457369,0.0776,63701.0,63687.0,0.39120779]
[1721352457370,0.0776,63706.0,63699.0,0.07717479]
[1721352457575,0.1412,63714.0,63713.0,0.156953]
[1721352457785,0.1412,63714.0,63713.0,0.47086]
[1721352457989,0.1412,63714.0,63713.0,0.156953]
[1721352458403,0.0636,63714.0,63713.0,0.47086]
[1721352458623,0.0636,63714.0,63713.0,0.784767]
[1721352458832,0.1467,63720.0,63718.0,0.156939]
[1721352459458,0.1467,63720.0,63719.0,0.156939]
[1721352459669,0.1467,63720.0,63719.0,0.470817]
[1721352460252,0.1527,63720.0,63719.0,0.470817]
[1721352460655,0.1467,63720.0,63719.0,0.470817]
[1721352460858,0.1477,63720.0,63719.0,0.470817]
[1721352461114,0.1517,63720.0,63719.0,0.470817]
[1721352461817,0.46301874,63720.0,63715.0,0.156948]
[1721352461991,0.15438174,63719.0,63716.0,0.156946]
[1721352462197,0.15438174,63719.0,63713.0,0.313903]
[1721352462440,0.15438174,63719.0,63716.0,0.156945]
[1721352463017,0.31132074,63719.0,63714.0,0.156948]
[1721352463223,0.1507,63720.0,63718.0,0.156939]
[1721352463454,0.1507,63720.0,63715.0,0.313897]
[1721352463785,0.1467,63720.0,63717.0,0.156942]
[1721352463994,0.003,63719.0,63717.0,0.156942]
[1721352464204,0.003,63719.0,63718.0,0.156941]
[1721352464613,0.003,63719.0,63718.0,0.470824]
[1721352465511,0.0654,63720.0,63719.0,0.156939]
[1721352465945,0.0694,63720.0,63714.0,0.313899]
[1721352466185,0.0694,63720.0,63713.0,0.156951]
[1721352466186,0.156943,63718.0,63713.0,0.156951]
[1721352466795,0.156943,63718.0,63714.0,0.15695]
[1721352467003,0.37771874,63720.0,63716.0,0.156945]
[1721352467164,0.21978174,63720.0,63714.0,0.3139]
[1721352467392,0.21978174,63720.0,63717.0,0.156943]
[1721352467601,0.156946,63717.0,63713.0,0.002]
[1721352467807,0.003,63719.0,63711.0,0.313913]
[1721352467808,0.156941,63718.0,63711.0,0.313913]
[1721352468026,0.156941,63718.0,63714.0,0.156949]
[1721352468221,0.003,63719.0,63717.0,0.156942]
[1721352468627,0.003,63719.0,63717.0,0.0038]
[1721352468804,0.159939,63719.0,63717.0,0.0038]
[1721352469005,0.156939,63719.0,63717.0,0.0038]
[1721352470342,0.165939,63719.0,63717.0,0.0048]
[1721352471525,0.009,63719.0,63717.0,0.0048]
[1721352472353,0.165939,63719.0,63717.0,0.0048]
[1721352472690,0.009,63719.0,63717.0,0.161742]
[1721352472887,0.009,63719.0,63717.0,0.157942]
[1721352473531,0.003,63719.0,63717.0,0.156942]
[1721352473733,0.005,63719.0,63717.0,0.156942]
[1721352474108,0.007,63719.0,63717.0,0.156942]
[1721352475288,0.002,63719.0,63717.0,0.156942]
[1721352475520,0.007,63719.0,63714.0,0.313899]
[1721352475721,0.005,63719.0,63716.0,0.313891]
[1721352475871,0.005,63719.0,63717.0,0.156942]
[1721352476374,0.002,63719.0,63717.0,0.156942]
[1721352476576,0.004,63719.0,63717.0,0.156941]
[1721352476779,0.004,63719.0,63714.0,0.313899]
[1721352476983,0.004,63719.0,63717.0,0.156943]
[1721352477162,0.21978174,63720.0,63717.0,0.156943]
[1721352477396,0.21978174,63720.0,63716.0,0.313891]
[1721352477601,0.001,63719.0,63717.0,0.156942]
[1721352478818,0.001,63719.0,63717.0,0.156943]
[1721352479150,0.005,63719.0,63717.0,0.156943]
[1721352480405,0.161939,63719.0,63715.0,0.156946]
[1721352481342,0.005,63719.0,63716.0,0.156945]
[1721352481505,0.001,63719.0,63716.0,0.156945]
[1721352481704,0.005,63719.0,63716.0,0.156945]
[1721352481940,0.313893,63716.0,63703.0,0.0755]
[1721352482106,0.002794,63715.0,63703.0,0.0755]
[1721352482306,0.002794,63715.0,63710.0,0.15696]
[1721352482586,0.002794,63715.0,63704.0,0.31395]
[1721352482587,0.156959,63711.0,63704.0,0.31395]
[1721352482820,0.156959,63711.0,63696.0,0.4787]
[1721352482821,0.0803,63708.0,63696.0,0.635695]
[1721352483036,0.46831974,63707.0,63690.0,0.0768]
[1721352483394,0.46831974,63707.0,63698.0,0.313976]
[1721352483395,0.313943,63706.0,63698.0,0.313976]
[1721352483522,0.156976,63704.0,63699.0,0.156987]
[1721352483948,0.156976,63704.0,63703.0,0.001]
[1721352484569,1.02854475,63704.0,63703.0,0.001]
[1721352485014,0.59268066,63704.0,63694.0,0.156999]
[1721352485217,0.156989,63699.0,63694.0,0.156999]
[1721352485419,0.313987,63697.0,63690.0,0.001]
[1721352485598,0.156995,63696.0,63691.0,0.157007]
[1721352485797,0.156993,63697.0,63689.0,0.314024]
[1721352486037,0.156993,63697.0,63693.0,0.157003]
[1721352486245,0.156996,63696.0,63694.0,0.001]
[1721352486434,0.313976,63699.0,63694.0,0.001]
[1721352486435,0.235998,63695.0,63694.0,0.001]
[1721352486680,0.235998,63695.0,63690.0,0.15701]
[1721352486681,0.157001,63694.0,63690.0,0.15701]
[1721352487846,0.314016,63691.0,63682.0,0.157029]
[1721352488076,0.314016,63691.0,63680.0,0.000913]
[1721352488077,0.314033,63688.0,63680.0,0.000913]
[1721352488212,0.157015,63688.0,63684.0,0.157024]
[1721352488589,0.157018,63687.0,63683.0,0.157027]
[1721352489102,0.314029,63689.0,63680.0,0.000913]
[1721352489103,0.157015,63688.0,63684.0,0.157025]
[1721352489526,0.164015,63688.0,63684.0,0.157025]
[1721352489723,0.162015,63688.0,63684.0,0.157025]
[1721352490148,0.158018,63687.0,63683.0,0.157027]
[1721352490364,0.162015,63688.0,63684.0,0.157024]
[1721352490750,0.164015,63688.0,63684.0,0.157024]
[1721352491871,0.002,63688.0,63685.0,0.157022]
[1721352492079,0.003,63687.0,63685.0,0.157022]
[1721352492514,0.001,63687.0,63685.0,0.157022]
[1721352492728,0.001,63687.0,63683.0,0.314052]
[1721352492729,0.0613,63699.0,63686.0,0.1444]
[1721352492930,0.0613,63699.0,63687.0,0.471052]
[1721352492931,0.005,63688.0,63687.0,0.471052]
[1721352493139,0.007,63688.0,63687.0,0.471052]
[1721352493316,0.002,63688.0,63687.0,0.785087]
[1721352493761,0.002,63688.0,63686.0,0.1444]
[1721352493964,0.002,63688.0,63680.0,0.000913]
[1721352493965,0.05,63696.0,63684.0,0.157024]
[1721352494169,0.157015,63688.0,63684.0,0.157024]
[1721352495008,0.15701,63690.0,63683.0,0.314052]
[1721352495212,0.157008,63691.0,63687.0,0.157016]
[1721352495415,0.004,63688.0,63687.0,0.471051]
[1721352495619,0.004,63688.0,63687.0,0.928786]
[1721352495830,0.1,63699.0,63696.0,0.156993]
[1721352496029,0.1,63699.0,63687.0,0.457735]
[1721352496030,0.156993,63697.0,63687.0,0.1437]
[1721352496157,0.156993,63697.0,63691.0,0.314013]
[1721352496359,0.31136974,63699.0,63694.0,0.156998]
[1721352496575,0.15438174,63699.0,63689.0,0.314025]
[1721352496759,0.313981,63698.0,63692.0,0.157004]
[1721352496960,0.156996,63696.0,63692.0,0.157004]
[1721352497648,0.314008,63693.0,63687.0,0.161017]
[1721352497771,0.157009,63691.0,63689.0,0.001]
[1721352497981,0.15701,63690.0,63689.0,0.001]
[1721352498878,0.15701,63690.0,63689.0,0.002]
[1721352499052,0.15701,63690.0,63689.0,0.001]
[1721352499191,0.15701,63690.0,63687.0,0.157017]
[1721352499392,0.15701,63690.0,63689.0,0.001]
[1721352500244,0.46838974,63693.0,63687.0,0.157017]
[1721352500245,0.31138474,63693.0,63687.0,0.314032]
[1721352500469,0.157009,63691.0,63689.0,0.004]
[1721352501522,0.15701,63690.0,63689.0,0.004]
[1721352502235,0.785052,63690.0,63689.0,0.004]
[1721352502415,1.02023374,63690.0,63689.0,0.005]
[1721352502823,0.157019,63687.0,63682.0,0.157029]
[1721352503994,0.15438174,63689.0,63680.0,0.000913]
[1721352504198,0.007,63690.0,63689.0,0.471037]
[1721352504398,0.007,63690.0,63689.0,0.157012]
[1721352504604,0.157003,63693.0,63689.0,0.157012]
[1721352504820,0.313996,63695.0,63690.0,0.157009]
[1721352505025,0.157003,63693.0,63690.0,0.157009]
[1721352505251,0.157005,63693.0,63689.0,0.157012]
[1721352505627,0.007,63690.0,63689.0,0.158012]
[1721352506207,0.157005,63693.0,63689.0,0.157012]
[1721352506429,0.166005,63693.0,63689.0,0.158012]
[1721352506615,0.008,63690.0,63689.0,0.159012]
[1721352506986,0.166005,63693.0,63689.0,0.158012]
[1721352507466,0.003,63690.0,63689.0,0.158012]
[1721352507674,0.003,63690.0,63689.0,0.157012]
[1721352507939,0.009,63690.0,63689.0,0.158012]
[1721352508692,0.009,63690.0,63689.0,0.547937]
[1721352508890,0.006,63690.0,63689.0,0.547937]
[1721352509100,0.006,63690.0,63689.0,0.548937]
[1721352509329,0.006,63690.0,63689.0,1.243187]
[1721352509525,0.006,63690.0,63689.0,0.928162]
[1721352509730,0.009,63690.0,63689.0,0.928162]
[1721352510895,0.009,63690.0,63689.0,1.242187]
[1721352517403,0.009,63690.0,63689.0,0.928162]
[1721352517650,0.009,63690.0,63689.0,0.786062]
[1721352517885,0.009,63690.0,63689.0,0.786975]
[1721352518498,0.56506135,63690.0,63689.0,0.001913]
[1721352518729,0.59957289,63690.0,63689.0,0.001913]
[1721352519161,0.25104035,63690.0,63689.0,0.001913]
[1721352519365,0.12811201,63690.0,63689.0,0.001913]
[1721352519579,0.29242491,63690.0,63689.0,0.001913]
[1721352520444,0.92046691,63690.0,63689.0,0.001913]
[1721352520640,1.07484865,63690.0,63689.0,0.001913]
[1721352521844,0.13541491,63690.0,63689.0,0.158925]
[1721352522042,0.13541491,63690.0,63689.0,0.47295]
[1721352522266,0.13541491,63690.0,63689.0,0.786975]
[1721352522433,0.13555453,63690.0,63689.0,0.47295]
[1721352522633,0.0163029,63690.0,63689.0,0.866175]
[1721352522878,0.009,63690.0,63689.0,0.866175]
[1721352527284,0.009,63690.0,63689.0,0.55215]
[1721352527481,0.009,63690.0,63689.0,0.47295]
[1721352527755,0.01683118,63690.0,63689.0,0.47295]
[1721352529037,0.53479403,63690.0,63689.0,0.001913]
[1721352529242,0.20529608,63690.0,63689.0,0.001913]
[1721352529461,0.1348983,63690.0,63689.0,0.158925]
[1721352529858,0.1348983,63690.0,63689.0,0.001913]
[1721352530079,0.1348983,63690.0,63689.0,0.158925]
[1721352530654,0.22876201,63690.0,63689.0,0.158925]
[1721352531839,0.32370147,63690.0,63689.0,0.001913]
[1721352532065,0.45173595,63690.0,63689.0,0.001913]
[1721352533570,0.44673595,63690.0,63689.0,0.001913]
[1721352533691,0.22392595,63690.0,63689.0,0.001913]
[1721352533898,0.22392595,63690.0,63689.0,0.158925]
[1721352534102,0.22392595,63690.0,63689.0,0.47295]
[1721352534329,0.22392595,63690.0,63689.0,0.61435]
[1721352534781,0.22392595,63690.0,63689.0,0.300325]
[1721352534991,0.22442339,63690.0,63689.0,0.61435]
[1721352537502,0.22442339,63690.0,63689.0,0.158925]
[1721352537705,0.13040518,63690.0,63689.0,0.158925]
[1721352538230,0.13008264,63690.0,63689.0,0.158925]
[1721352539246,0.13008264,63690.0,63689.0,0.786975]
[1721352539613,0.11654217,63690.0,63689.0,0.786975]
[1721352540223,0.082351,63690.0,63689.0,0.786975]
[1721352540669,0.082351,63690.0,63689.0,1.2467]
[1721352540876,0.05885195,63690.0,63689.0,1.2467]
[1721352541101,0.004,63690.0,63689.0,1.2467]
[1721352541313,0.01183004,63690.0,63689.0,1.2467]
[1721352541524,0.004,63690.0,63689.0,1.2467]
[1721352542262,0.004,63690.0,63689.0,0.932675]
[1721352542519,0.051031,63690.0,63689.0,0.932675]
[1721352542744,0.004,63690.0,63689.0,0.932675]
[1721352542967,0.05884921,63690.0,63689.0,0.932675]
[1721352543442,0.01183004,63690.0,63689.0,1.2467]
[1721352544185,0.004,63690.0,63689.0,1.2467]
[1721352545382,0.004,63690.0,63689.0,2.02913174]
[1721352545639,0.004,63690.0,63689.0,2.15953993]
[1721352546354,0.003,63690.0,63689.0,2.15853993]
[1721352546582,0.003,63690.0,63689.0,2.18153993]
[1721352546815,0.004,63690.0,63689.0,2.19053993]
[1721352547066,0.001,63690.0,63689.0,2.19053993]
[1721352547298,0.04701693,63706.0,63705.0,0.784867]
[1721352547783,0.11742964,63712.0,63711.0,0.156957]
[1721352548008,0.05744514,63712.0,63711.0,0.156957]
[1721352549748,0.15134366,63712.0,63711.0,0.156957]
[1721352549970,0.15734366,63712.0,63711.0,0.156957]
[1721352551434,0.16034366,63712.0,63711.0,0.156957]
[1721352551667,0.06644514,63712.0,63711.0,0.470874]
[1721352551901,0.06644514,63712.0,63711.0,0.156957]
[1721352552356,0.06044514,63712.0,63711.0,0.156957]
[1721352552609,0.05744514,63712.0,63702.0,0.313958]
[1721352552838,0.10404405,63711.0,63710.0,0.156961]
[1721352553334,0.10404405,63711.0,63710.0,0.470883]
[1721352553610,0.004,63712.0,63711.0,0.156958]
[1721352553844,0.07039371,63713.0,63711.0,0.156958]
[1721352554071,0.19384658,63714.0,63712.0,0.156955]
[1721352554306,0.07038498,63713.0,63712.0,0.156955]
[1721352554549,0.07038498,63714.0,63713.0,0.156953]
[1721352554780,0.09467658,63715.0,63713.0,0.156953]
[1721352554781,0.07120923,63715.0,63713.0,0.156952]
[1721352555012,0.04691956,63714.0,63713.0,0.156952]
[1721352555483,0.05091956,63714.0,63713.0,0.156952]
[1721352555721,0.004,63714.0,63713.0,0.156952]
[1721352555956,0.00083,63715.0,63714.0,1.098657]
[1721352556180,0.00583,63715.0,63714.0,1.098657]
[1721352556646,0.01383,63715.0,63714.0,1.098657]
[1721352557658,0.00883,63715.0,63714.0,1.098657]
[1721352558310,0.00083,63715.0,63714.0,1.098657]
[1721352558537,0.00283,63715.0,63714.0,1.099657]
[1721352561878,0.00083,63715.0,63714.0,1.098657]
[1721352562093,0.00083,63715.0,63714.0,1.103657]
[1721352562316,0.00083,63715.0,63714.0,1.105657]
[1721352562586,0.00083,63715.0,63714.0,1.71564074]
[1721352562830,0.00083,63715.0,63714.0,2.05254274]
[1721352564583,0.00083,63715.0,63714.0,2.02954274]
[1721352564793,0.00083,63715.0,63714.0,2.05254274]
[1721352569215,0.00083,63715.0,63714.0,1.74778591]
[1721352570075,0.00083,63715.0,63714.0,1.74578591]
[1721352570529,0.00083,63715.0,63714.0,1.71778591]
[1721352571008,0.00083,63715.0,63714.0,1.72678591]
[1721352571250,0.00083,63715.0,63714.0,1.71778591]
[1721352571476,0.00083,63715.0,63714.0,1.72378591]
[1721352571709,0.00083,63715.0,63714.0,1.73578591]
[1721352571940,0.00083,63715.0,63714.0,1.11380217]
[1721352572166,0.00083,63715.0,63714.0,1.10780217]
[1721352572392,0.00183,63715.0,63714.0,1.60108591]
[1721352576341,0.00183,63715.0,63714.0,1.74358591]
[1721352578668,0.00183,63715.0,63714.0,1.87393283]
[1721352579112,0.00183,63715.0,63714.0,1.74358591]
[1721352579595,0.00183,63715.0,63714.0,1.87393432]
[1721352580080,0.00183,63715.0,63714.0,1.74358591]
[1721352580305,0.00183,63715.0,63714.0,1.87393558]
[1721352580770,0.00183,63715.0,63714.0,2.26083758]
[1721352580990,0.00183,63715.0,63714.0,2.31083758]
[1721352582351,0.00183,63715.0,63714.0,2.18048791]
[1721352582567,0.00183,63715.0,63714.0,2.31083273]
[1721352582994,0.00183,63715.0,63714.0,2.36083273]
[1721352583264,0.00183,63715.0,63714.0,2.31083273]
[1721352583912,0.00183,63715.0,63714.0,2.36083273]
[1721352584805,0.00183,63715.0,63714.0,2.31083273]
[1721352585020,0.00183,63715.0,63714.0,2.36083273]
[1721352585680,0.00183,63715.0,63714.0,2.36082735]
[1721352587001,0.00183,63715.0,63714.0,2.31082735]
[1721352588782,0.00183,63715.0,63714.0,2.31083054]
[1721352590310,0.00183,63715.0,63714.0,1.97392854]
[1721352590522,0.00183,63715.0,63714.0,1.90982854]
[1721352592076,0.00183,63715.0,63714.0,1.90983301]
[1721352595171,0.00183,63715.0,63714.0,1.90983252]
[1721352595393,0.00183,63715.0,63714.0,1.84508591]
[1721352595611,0.00183,63715.0,63714.0,1.97543172]
[1721352597355,0.00183,63715.0,63714.0,1.83143172]
[1721352598475,0.00183,63715.0,63714.0,1.83143748]
[1721352601570,0.00183,63715.0,63714.0,1.83143679]
[1721352601791,0.00183,63715.0,63714.0,1.83143613]
[1721352601993,0.00183,63715.0,63714.0,1.66790922]
[1721352602199,0.06793,63715.0,63714.0,1.56790922]
[1721352603427,0.00183,63715.0,63714.0,1.56790922]
[1721352604079,0.00183,63715.0,63714.0,1.72229096]
[1721352604735,0.00183,63715.0,63714.0,2.17989047]
[1721352604958,0.00083,63719.0,63718.0,1.541373]
[1721352605199,0.00083,63719.0,63718.0,2.24010247]
[1721352605407,0.00083,63719.0,63718.0,2.93846223]
[1721352605620,0.00083,63719.0,63718.0,3.28646676]
[1721352605839,0.00083,63719.0,63718.0,2.73752074]
[1721352606049,0.00083,63719.0,63718.0,3.15611514]
[1721352606262,1e-06,63719.0,63718.0,3.28643948]
[1721352606475,1e-06,63719.0,63718.0,3.30043948]
[1721352606680,0.002794,63738.0,63737.0,0.303494]
[1721352606898,0.002794,63740.0,63739.0,0.470668]
[1721352607122,0.11748532,63746.0,63740.0,0.784435]
[1721352607353,0.11748532,63746.0,63740.0,1.25259074]
[1721352607561,0.00833,63741.0,63740.0,1.56636474]
[1721352609008,0.00833,63741.0,63740.0,1.57436474]
[1721352609690,0.00833,63741.0,63740.0,1.58436474]
[1721352610074,0.00833,63741.0,63740.0,1.65036474]
[1721352610510,0.00833,63741.0,63740.0,1.78066453]
[1721352610716,0.00833,63741.0,63740.0,1.79001977]
[1721352612264,0.00833,63741.0,63740.0,1.59371998]
[1721352614260,0.00833,63741.0,63740.0,1.90749398]
[1721352614476,0.00833,63741.0,63740.0,2.22929398]
[1721352614681,0.00833,63741.0,63740.0,2.30957519]
[1721352614898,0.00833,63741.0,63740.0,2.36743519]
[1721352616086,0.00833,63741.0,63740.0,2.35943519]
[1721352616311,0.00833,63741.0,63740.0,2.67320919]
[1721352616514,0.00833,63741.0,63740.0,2.67720778]
[1721352616716,0.00833,63741.0,63740.0,2.69120778]
[1721352616916,0.00833,63741.0,63740.0,2.67720778]
[1721352617568,0.00833,63741.0,63740.0,2.69120778]
[1721352618345,0.00833,63741.0,63740.0,2.56092798]
[1721352618938,0.00833,63741.0,63740.0,2.51092798]
[1721352619155,0.00833,63741.0,63740.0,2.19715398]
[1721352619416,0.00833,63741.0,63740.0,2.10795398]
[1721352619644,0.00833,63741.0,63740.0,1.71157998]
[1721352620285,0.00833,63741.0,63740.0,2.02535398]
[1721352620508,0.00833,63741.0,63740.0,2.16585398]
[1721352620766,0.00833,63741.0,63740.0,2.13785398]
[1721352620998,0.00833,63741.0,63740.0,2.22485398]
[1721352621636,0.00833,63741.0,63740.0,2.23885398]
[1721352622477,1e-06,63741.0,63740.0,2.53862798]
[1721352622695,1e-06,63741.0,63740.0,2.55262798]
[1721352622914,1e-06,63741.0,63740.0,2.68290105]
[1721352623813,0.002,63749.0,63748.0,1.539307]
[1721352624026,0.002,63749.0,63748.0,1.81668874]
[1721352624246,0.00833,63752.0,63751.0,1.14802]
[1721352624487,0.0006009,63758.0,63755.0,0.52055]
[1721352624735,3.6e-07,63756.0,63755.0,1.99613174]
[1721352624958,3.6e-07,63756.0,63755.0,2.30983174]
[1721352625185,3.6e-07,63756.0,63755.0,2.39573174]
[1721352625650,3.6e-07,63756.0,63755.0,2.62353174]
[1721352625916,0.0006009,63758.0,63755.0,0.55518174]
[1721352626185,0.0006009,63758.0,63757.0,2.15075653]
[1721352626414,0.002794,63775.0,63758.0,1.147901]
[1721352626641,0.46584271,63775.0,63758.0,2.10895474]
[1721352626915,0.002794,63774.0,63766.0,1.097761]
[1721352627169,0.002794,63774.0,63766.0,1.66578874]
[1721352627170,0.0786,63771.0,63766.0,1.66578874]
[1721352627863,0.08803,63776.0,63766.0,1.66578874]
[1721352628348,0.08803,63776.0,63766.0,1.66778874]
[1721352628807,0.08803,63776.0,63766.0,1.67727853]
[1721352628808,0.0093442,63767.0,63766.0,1.67727853]
[1721352630228,0.0093442,63767.0,63766.0,1.70027853]
[1721352630962,0.0093442,63767.0,63766.0,2.01392453]
[1721352631211,0.0093442,63767.0,63766.0,2.15502453]
[1721352631665,0.0093442,63767.0,63766.0,2.15302453]
[1721352631901,0.0093442,63767.0,63766.0,2.16702453]
[1721352632126,0.0093442,63767.0,63766.0,2.17902453]
[1721352632604,0.0093442,63767.0,63766.0,2.16702453]
[1721352632839,0.0093442,63767.0,63766.0,2.18102453]
[1721352634416,0.0093442,63767.0,63766.0,2.31125642]
[1721352635089,0.0093442,63767.0,63766.0,2.18102453]
[1721352635258,0.0093442,63767.0,63766.0,2.31125608]
[1721352635918,0.0093442,63767.0,63766.0,2.36125608]
[1721352636134,0.0093442,63767.0,63766.0,2.31125608]
[1721352636927,0.0093442,63767.0,63766.0,1.83351008]
[1721352637139,0.0732442,63767.0,63766.0,0.498469]
[1721352637388,0.1535442,63767.0,63766.0,0.014]
[1721352637610,0.1535442,63767.0,63766.0,0.184823]
[1721352637844,0.1535442,63767.0,63766.0,0.812115]
[1721352638269,0.1535442,63767.0,63766.0,0.498469]
[1721352638527,0.1535442,63767.0,63766.0,0.470469]
[1721352638743,0.0632,63765.0,63760.0,0.313673]
[1721352638953,0.0632,63765.0,63755.0,0.4787]
[1721352638954,0.068994,63763.0,63762.0,0.156831]
[1721352639171,0.0662,63763.0,63762.0,0.156831]
[1721352639413,0.0662,63758.0,63745.0,0.05084039]
[1721352639616,0.0662,63758.0,63740.0,0.00786]
[1721352639617,0.0757,63757.0,63753.0,0.313706]
[1721352639896,0.0757,63757.0,63756.0,0.470542]
[1721352640124,0.0757,63757.0,63756.0,0.784237]
[1721352640525,0.0757,63757.0,63756.0,1.097932]
[1721352641201,0.1453,63763.0,63762.0,0.156833]
[1721352641401,0.1453,63763.0,63762.0,0.784165]
[1721352641610,0.0652,63763.0,63762.0,1.097831]
[1721352641823,0.0632,63763.0,63762.0,0.470499]
[1721352642034,0.0894442,63767.0,63756.0,0.008]
[1721352642035,0.06,63761.0,63756.0,0.008]
[1721352642264,0.216836,63761.0,63756.0,0.012]
[1721352642471,0.002794,63760.0,63756.0,0.012]
[1721352642677,0.002794,63760.0,63759.0,0.15684]
[1721352642879,0.002794,63760.0,63759.0,0.470521]
[1721352643289,0.002794,63760.0,63759.0,0.15684]
[1721352644024,0.002794,63760.0,63759.0,0.15884]
[1721352644233,0.304632,63760.0,63759.0,0.002]
[1721352644439,0.301838,63760.0,63759.0,0.006]
[1721352644885,0.301838,63760.0,63759.0,0.002]
[1721352645111,0.301838,63760.0,63759.0,0.003]
[1721352645527,0.615514,63760.0,63759.0,0.003]
[1721352645735,0.156841,63759.0,63754.0,0.156852]
[1721352645947,0.002794,63758.0,63756.0,0.15776]
[1721352646198,0.002794,63759.0,63756.0,0.000913]
[1721352646414,0.002794,63759.0,63756.0,0.15776]
[1721352646616,0.002794,63759.0,63756.0,0.00083107]
[1721352647026,0.222644,63758.0,63756.0,0.00083107]
[1721352647237,0.299845,63757.0,63756.0,0.00183107]
[1721352647646,0.143,63757.0,63756.0,0.00183107]
[1721352647892,0.299845,63757.0,63756.0,0.00183107]
[1721352648316,0.927227,63757.0,63756.0,0.00183107]
[1721352648527,1.08160874,63757.0,63756.0,0.00283107]
[1721352648774,1.49110987,63757.0,63756.0,0.00183107]
[1721352649007,1.44529974,63757.0,63756.0,0.00183107]
[1721352649217,1.39529974,63757.0,63756.0,0.00083107]
[1721352649645,1.44529974,63757.0,63756.0,0.00183107]
[1721352649863,1.48858384,63757.0,63756.0,0.00183107]
[1721352650152,1.48858384,63757.0,63756.0,0.00083107]
[1721352650361,1.68086178,63757.0,63756.0,0.00083107]
[1721352650560,1.52752618,63757.0,63756.0,0.00183107]
[1721352651176,1.5274613,63757.0,63756.0,0.00183107]
[1721352651381,1.43958384,63757.0,63756.0,0.00183107]
[1721352651607,1.40129974,63757.0,63756.0,0.00283107]
[1721352651813,1.39629974,63757.0,63756.0,0.00183107]
[1721352652200,1.40629974,63757.0,63756.0,0.00283107]
[1721352652798,0.938227,63757.0,63756.0,0.00283107]
[1721352653002,0.624536,63757.0,63756.0,0.00283107]
[1721352653232,0.310845,63757.0,63756.0,0.00283107]
[1721352653602,0.624536,63757.0,63756.0,0.00283107]